{"text_format":"1","workbook":"xlsx","n_sheets":4,"sheets":["Küldő-Mérlegkör-Elosztó","Fogyasztói_adatok","Beállítás","Munka"],"not_rendered":{"charts":0,"images":0,"macros":1,"external_links":0,"defined_names":24,"comments":1,"pivot_tables":0},"unopened":[],"bounds":{"document_bytes":16777216,"sheet_cells":100000,"rows_first":2000,"rows_last":500,"rows_between":2000,"halvings":0,"cell_chars":16384,"cell_head_chars":4096},"cells_cut":0,"cells_raw":0,"read":"whole","date_system":"1900"}

{"sheet":"Küldő-Mérlegkör-Elosztó","index":0,"n_rows":19,"n_cols":8,"rows_kept":19,"cut":false,"hidden":false,"merged":[]}
[null,null,"Segéd",null,null,null,"Rövidnév","EIC KÓD"]
[null,"Megnevezés","Tábla azonosító","Kezdő sor","Elem szám","Sor"]
["Kereskedő",null,"Kereskedő",{"$f":"HLOOKUP(C3,Beállítás!$C$2:$IV$3,2,FALSE)","v":113},{"$f":"INDIRECT(\"'Beállítás'!C\" & ('Küldő-Mérlegkör-Elosztó'!D3-2))","v":83},{"$f":"IF(ISERROR(MATCH(B3,INDIRECT(\"'Beállítás'!B\" & D3 & \":B\" & (D3+E3-1)),0)),0,D3+MATCH(B3,INDIRECT(\"'Beállítás'!B\" & D3 & \":B\" & (D3+E3-1)),0)-1)","v":0},{"$f":"INDIRECT(\"'Beállítás'!C\" & $F3)","v":{"$error":"#REF!"}},{"$f":"INDIRECT(\"'Beállítás'!D\" & $F3)","v":{"$error":"#REF!"}}]
["Mérlegkörfelelős",null,"Mérlegkör",{"$f":"HLOOKUP(C4,Beállítás!$C$2:$IV$3,2,FALSE)","v":50},{"$f":"INDIRECT(\"'Beállítás'!C\" & ('Küldő-Mérlegkör-Elosztó'!D4-2))","v":60},{"$f":"IF(ISERROR(MATCH(B4,INDIRECT(\"'Beállítás'!B\" & D4 & \":B\" & (D4+E4-1)),0)),0,D4+MATCH(B4,INDIRECT(\"'Beállítás'!B\" & D4 & \":B\" & (D4+E4-1)),0)-1)","v":0},{"$f":"INDIRECT(\"'Beállítás'!C\" & $F4)","v":{"$error":"#REF!"}},{"$f":"INDIRECT(\"'Beállítás'!D\" & $F4)","v":{"$error":"#REF!"}}]
["Elosztó",null,"Elosztók",{"$f":"HLOOKUP(C5,Beállítás!$C$2:$IV$3,2,FALSE)","v":8},{"$f":"INDIRECT(\"'Beállítás'!C\" & ('Küldő-Mérlegkör-Elosztó'!D5-2))","v":8},{"$f":"IF(ISERROR(MATCH(B5,INDIRECT(\"'Beállítás'!B\" & D5 & \":B\" & (D5+E5-1)),0)),0,D5+MATCH(B5,INDIRECT(\"'Beállítás'!B\" & D5 & \":B\" & (D5+E5-1)),0)-1)","v":0},{"$f":"INDIRECT(\"'Beállítás'!C\" & $F5)","v":{"$error":"#REF!"}},{"$f":"INDIRECT(\"'Beállítás'!D\" & $F5)","v":{"$error":"#REF!"}}]
["Küldő",null,null,null,null,null,{"$f":"VLOOKUP(B6,$B$3:$H$5,6,FALSE)","v":{"$error":"#N/A"}},{"$f":"VLOOKUP(B6,$B$3:$H$5,7,FALSE)","v":{"$error":"#N/A"}}]
[]
[]
[]
[]
["A \"Fogyasztói_adatok\" lapon ezen színnel jelölt fejlécű oszlopok kitöltése kötelező"]
[]
[]
[]
["A \"Fogyasztói_adatok\" lapon ezen színnel jelölt oszlopok kitöltését lista segíti, melyet a mezőre történő kattintással érhet el"]
[]
[]
[]
["A \"Fogyasztói_adatok\" lapon ezen színnel jelölt oszlopok kitöltését automatikus. Ne változtassa!"]

{"sheet":"Fogyasztói_adatok","index":1,"n_rows":57,"n_cols":46,"rows_kept":57,"cut":false,"hidden":false,"merged":[]}
["V21.4",{"$f":"COUNTA($B$8:$B$65000)","v":50},{"$f":"'Küldő-Mérlegkör-Elosztó'!B3","v":0},{"$f":"'Küldő-Mérlegkör-Elosztó'!B4","v":0},null,null,null,null,null,null,null,null,null,null,null,null,null,null,null,null,null,{"$f":"HLOOKUP(\"ProfilCsop\",Beállítás!$C$2:$IV$3,2)","v":24}]
[null,null,null,null,null,null,null,null,null,null,null,null,null,null,null,null,null,null,null,null,null,{"$f":"HLOOKUP(\"ProfilCsop\",Beállítás!$C$2:$IV$4,3)","v":46}]
[null,"Ssz","Küldés dátuma",null,"Státusz",null,"Üzleti partner neve","Fogyasztási hely",null,null,null,null,null,"POD","Mérő",null,"Kereskedő váltás","Szerződés vége","Ellátás alapú","Felhasználó","Profilos fogyasztók esetén",null,null,"Lekötött teljesítmény","RHD","Bejelentett","Leolvasott mérőállások",null,null,null,null,"Fogyasztói kapcsolattartó",null,null,null,"Leolvasás","Csatlakozási",null,"Védendő","Elosztói tarifa","Kiegészítő","Küldő","Kereskedő","Mérlegkörfelelős","Elosztó","Hibakódok"]
[null,null,"Kereskedő","Elosztó","Kereskedő","Elosztó",null,"Azonosító","Szerződésszám","Megnevezés","Cím",null,null,"Mérőpont azonosító","gyáriszám","azonosító","dátuma","(határozatlan idejű","szerződés ","típusa","Profilcsoport",null,"MÉF","(rendelkezésre álló teljesítményig)","fizető","POD","dátuma","Hatásos Vesz",null,null,null,null,null,null,null,"tervezett dátuma","pontok száma",null,null,null,"információk"]
[null,null,"(ééééhhnn)","(ééééhhnn)",null,null,null,null,null,null,"Irsz.","Város","Utca, …",null,null,null,"(ééééhhnn)","esetén: 99991231)","azonosítója",null,"Megnevezés","Kód","kWh","kW",null,null,"(ééééhhnn)","Minden napszakos; kWh","Csúcs; kWh","Völgy; kWh","Mérőszám","Név","Telefon","Fax","e-mail","hhnn","db"]
[null,"Be"]
[null,"Ki"]
[null,1,null,null,null,null,null,null,null,null,null,null,null,null,null,null,null,null,null,null,null,{"$f":"IF(T8<>\"Profilos\",\"\",VLOOKUP(U8,INDIRECT(\"Beállítás!B\" & $V$1 & \":C\" & $V$2),2,FALSE))","v":""},null,null,null,null,null,null,null,null,null,null,null,null,null,null,null,null,null,null,null,{"$f":"IF(AND(ISBLANK(E8),ISBLANK(F8)),\"\",'Küldő-Mérlegkör-Elosztó'!$B$6)","v":""},{"$f":"IF(AND(ISBLANK(E8),ISBLANK(F8)),\"\",'Küldő-Mérlegkör-Elosztó'!$B$3)","v":""},{"$f":"IF(AND(ISBLANK(E8),ISBLANK(F8)),\"\",'Küldő-Mérlegkör-Elosztó'!$B$4)","v":""},{"$f":"IF(AND(ISBLANK(E8),ISBLANK(F8)),\"\",'Küldő-Mérlegkör-Elosztó'!$B$5)","v":""}]
[null,2,null,null,null,null,null,null,null,null,null,null,null,null,null,null,null,null,null,null,null,"",null,null,null,null,null,null,null,null,null,null,null,null,null,null,null,null,null,null,null,{"$f":"IF(AND(ISBLANK(E9),ISBLANK(F9)),\"\",'Küldő-Mérlegkör-Elosztó'!$B$6)","v":""},{"$f":"IF(AND(ISBLANK(E9),ISBLANK(F9)),\"\",'Küldő-Mérlegkör-Elosztó'!$B$3)","v":""},{"$f":"IF(AND(ISBLANK(E9),ISBLANK(F9)),\"\",'Küldő-Mérlegkör-Elosztó'!$B$4)","v":""},{"$f":"IF(AND(ISBLANK(E9),ISBLANK(F9)),\"\",'Küldő-Mérlegkör-Elosztó'!$B$5)","v":""}]
[null,3,null,null,null,null,null,null,null,null,null,null,null,null,null,null,null,null,null,null,null,"",null,null,null,null,null,null,null,null,null,null,null,null,null,null,null,null,null,null,null,{"$f":"IF(AND(ISBLANK(E10),ISBLANK(F10)),\"\",'Küldő-Mérlegkör-Elosztó'!$B$6)","v":""},{"$f":"IF(AND(ISBLANK(E10),ISBLANK(F10)),\"\",'Küldő-Mérlegkör-Elosztó'!$B$3)","v":""},{"$f":"IF(AND(ISBLANK(E10),ISBLANK(F10)),\"\",'Küldő-Mérlegkör-Elosztó'!$B$4)","v":""},{"$f":"IF(AND(ISBLANK(E10),ISBLANK(F10)),\"\",'Küldő-Mérlegkör-Elosztó'!$B$5)","v":""}]
[null,4,null,null,null,null,null,null,null,null,null,null,null,null,null,null,null,null,null,null,null,"",null,null,null,null,null,null,null,null,null,null,null,null,null,null,null,null,null,null,null,{"$f":"IF(AND(ISBLANK(E11),ISBLANK(F11)),\"\",'Küldő-Mérlegkör-Elosztó'!$B$6)","v":""},{"$f":"IF(AND(ISBLANK(E11),ISBLANK(F11)),\"\",'Küldő-Mérlegkör-Elosztó'!$B$3)","v":""},{"$f":"IF(AND(ISBLANK(E11),ISBLANK(F11)),\"\",'Küldő-Mérlegkör-Elosztó'!$B$4)","v":""},{"$f":"IF(AND(ISBLANK(E11),ISBLANK(F11)),\"\",'Küldő-Mérlegkör-Elosztó'!$B$5)","v":""}]
[null,5,null,null,null,null,null,null,null,null,null,null,null,null,null,null,null,null,null,null,null,"",null,null,null,null,null,null,null,null,null,null,null,null,null,null,null,null,null,null,null,{"$f":"IF(AND(ISBLANK(E12),ISBLANK(F12)),\"\",'Küldő-Mérlegkör-Elosztó'!$B$6)","v":""},{"$f":"IF(AND(ISBLANK(E12),ISBLANK(F12)),\"\",'Küldő-Mérlegkör-Elosztó'!$B$3)","v":""},{"$f":"IF(AND(ISBLANK(E12),ISBLANK(F12)),\"\",'Küldő-Mérlegkör-Elosztó'!$B$4)","v":""},{"$f":"IF(AND(ISBLANK(E12),ISBLANK(F12)),\"\",'Küldő-Mérlegkör-Elosztó'!$B$5)","v":""}]
[null,6,null,null,null,null,null,null,null,null,null,null,null,null,null,null,null,null,null,null,null,"",null,null,null,null,null,null,null,null,null,null,null,null,null,null,null,null,null,null,null,{"$f":"IF(AND(ISBLANK(E13),ISBLANK(F13)),\"\",'Küldő-Mérlegkör-Elosztó'!$B$6)","v":""},{"$f":"IF(AND(ISBLANK(E13),ISBLANK(F13)),\"\",'Küldő-Mérlegkör-Elosztó'!$B$3)","v":""},{"$f":"IF(AND(ISBLANK(E13),ISBLANK(F13)),\"\",'Küldő-Mérlegkör-Elosztó'!$B$4)","v":""},{"$f":"IF(AND(ISBLANK(E13),ISBLANK(F13)),\"\",'Küldő-Mérlegkör-Elosztó'!$B$5)","v":""}]
[null,7,null,null,null,null,null,null,null,null,null,null,null,null,null,null,null,null,null,null,null,"",null,null,null,null,null,null,null,null,null,null,null,null,null,null,null,null,null,null,null,{"$f":"IF(AND(ISBLANK(E14),ISBLANK(F14)),\"\",'Küldő-Mérlegkör-Elosztó'!$B$6)","v":""},{"$f":"IF(AND(ISBLANK(E14),ISBLANK(F14)),\"\",'Küldő-Mérlegkör-Elosztó'!$B$3)","v":""},{"$f":"IF(AND(ISBLANK(E14),ISBLANK(F14)),\"\",'Küldő-Mérlegkör-Elosztó'!$B$4)","v":""},{"$f":"IF(AND(ISBLANK(E14),ISBLANK(F14)),\"\",'Küldő-Mérlegkör-Elosztó'!$B$5)","v":""}]
[null,8,null,null,null,null,null,null,null,null,null,null,null,null,null,null,null,null,null,null,null,"",null,null,null,null,null,null,null,null,null,null,null,null,null,null,null,null,null,null,null,{"$f":"IF(AND(ISBLANK(E15),ISBLANK(F15)),\"\",'Küldő-Mérlegkör-Elosztó'!$B$6)","v":""},{"$f":"IF(AND(ISBLANK(E15),ISBLANK(F15)),\"\",'Küldő-Mérlegkör-Elosztó'!$B$3)","v":""},{"$f":"IF(AND(ISBLANK(E15),ISBLANK(F15)),\"\",'Küldő-Mérlegkör-Elosztó'!$B$4)","v":""},{"$f":"IF(AND(ISBLANK(E15),ISBLANK(F15)),\"\",'Küldő-Mérlegkör-Elosztó'!$B$5)","v":""}]
[null,9,null,null,null,null,null,null,null,null,null,null,null,null,null,null,null,null,null,null,null,"",null,null,null,null,null,null,null,null,null,null,null,null,null,null,null,null,null,null,null,{"$f":"IF(AND(ISBLANK(E16),ISBLANK(F16)),\"\",'Küldő-Mérlegkör-Elosztó'!$B$6)","v":""},{"$f":"IF(AND(ISBLANK(E16),ISBLANK(F16)),\"\",'Küldő-Mérlegkör-Elosztó'!$B$3)","v":""},{"$f":"IF(AND(ISBLANK(E16),ISBLANK(F16)),\"\",'Küldő-Mérlegkör-Elosztó'!$B$4)","v":""},{"$f":"IF(AND(ISBLANK(E16),ISBLANK(F16)),\"\",'Küldő-Mérlegkör-Elosztó'!$B$5)","v":""}]
[null,10,null,null,null,null,null,null,null,null,null,null,null,null,null,null,null,null,null,null,null,"",null,null,null,null,null,null,null,null,null,null,null,null,null,null,null,null,null,null,null,{"$f":"IF(AND(ISBLANK(E17),ISBLANK(F17)),\"\",'Küldő-Mérlegkör-Elosztó'!$B$6)","v":""},{"$f":"IF(AND(ISBLANK(E17),ISBLANK(F17)),\"\",'Küldő-Mérlegkör-Elosztó'!$B$3)","v":""},{"$f":"IF(AND(ISBLANK(E17),ISBLANK(F17)),\"\",'Küldő-Mérlegkör-Elosztó'!$B$4)","v":""},{"$f":"IF(AND(ISBLANK(E17),ISBLANK(F17)),\"\",'Küldő-Mérlegkör-Elosztó'!$B$5)","v":""}]
[null,11,null,null,null,null,null,null,null,null,null,null,null,null,null,null,null,null,null,null,null,"",null,null,null,null,null,null,null,null,null,null,null,null,null,null,null,null,null,null,null,{"$f":"IF(AND(ISBLANK(E18),ISBLANK(F18)),\"\",'Küldő-Mérlegkör-Elosztó'!$B$6)","v":""},{"$f":"IF(AND(ISBLANK(E18),ISBLANK(F18)),\"\",'Küldő-Mérlegkör-Elosztó'!$B$3)","v":""},{"$f":"IF(AND(ISBLANK(E18),ISBLANK(F18)),\"\",'Küldő-Mérlegkör-Elosztó'!$B$4)","v":""},{"$f":"IF(AND(ISBLANK(E18),ISBLANK(F18)),\"\",'Küldő-Mérlegkör-Elosztó'!$B$5)","v":""}]
[null,12,null,null,null,null,null,null,null,null,null,null,null,null,null,null,null,null,null,null,null,"",null,null,null,null,null,null,null,null,null,null,null,null,null,null,null,null,null,null,null,{"$f":"IF(AND(ISBLANK(E19),ISBLANK(F19)),\"\",'Küldő-Mérlegkör-Elosztó'!$B$6)","v":""},{"$f":"IF(AND(ISBLANK(E19),ISBLANK(F19)),\"\",'Küldő-Mérlegkör-Elosztó'!$B$3)","v":""},{"$f":"IF(AND(ISBLANK(E19),ISBLANK(F19)),\"\",'Küldő-Mérlegkör-Elosztó'!$B$4)","v":""},{"$f":"IF(AND(ISBLANK(E19),ISBLANK(F19)),\"\",'Küldő-Mérlegkör-Elosztó'!$B$5)","v":""}]
[null,13,null,null,null,null,null,null,null,null,null,null,null,null,null,null,null,null,null,null,null,"",null,null,null,null,null,null,null,null,null,null,null,null,null,null,null,null,null,null,null,{"$f":"IF(AND(ISBLANK(E20),ISBLANK(F20)),\"\",'Küldő-Mérlegkör-Elosztó'!$B$6)","v":""},{"$f":"IF(AND(ISBLANK(E20),ISBLANK(F20)),\"\",'Küldő-Mérlegkör-Elosztó'!$B$3)","v":""},{"$f":"IF(AND(ISBLANK(E20),ISBLANK(F20)),\"\",'Küldő-Mérlegkör-Elosztó'!$B$4)","v":""},{"$f":"IF(AND(ISBLANK(E20),ISBLANK(F20)),\"\",'Küldő-Mérlegkör-Elosztó'!$B$5)","v":""}]
[null,14,null,null,null,null,null,null,null,null,null,null,null,null,null,null,null,null,null,null,null,"",null,null,null,null,null,null,null,null,null,null,null,null,null,null,null,null,null,null,null,{"$f":"IF(AND(ISBLANK(E21),ISBLANK(F21)),\"\",'Küldő-Mérlegkör-Elosztó'!$B$6)","v":""},{"$f":"IF(AND(ISBLANK(E21),ISBLANK(F21)),\"\",'Küldő-Mérlegkör-Elosztó'!$B$3)","v":""},{"$f":"IF(AND(ISBLANK(E21),ISBLANK(F21)),\"\",'Küldő-Mérlegkör-Elosztó'!$B$4)","v":""},{"$f":"IF(AND(ISBLANK(E21),ISBLANK(F21)),\"\",'Küldő-Mérlegkör-Elosztó'!$B$5)","v":""}]
[null,15,null,null,null,null,null,null,null,null,null,null,null,null,null,null,null,null,null,null,null,"",null,null,null,null,null,null,null,null,null,null,null,null,null,null,null,null,null,null,null,{"$f":"IF(AND(ISBLANK(E22),ISBLANK(F22)),\"\",'Küldő-Mérlegkör-Elosztó'!$B$6)","v":""},{"$f":"IF(AND(ISBLANK(E22),ISBLANK(F22)),\"\",'Küldő-Mérlegkör-Elosztó'!$B$3)","v":""},{"$f":"IF(AND(ISBLANK(E22),ISBLANK(F22)),\"\",'Küldő-Mérlegkör-Elosztó'!$B$4)","v":""},{"$f":"IF(AND(ISBLANK(E22),ISBLANK(F22)),\"\",'Küldő-Mérlegkör-Elosztó'!$B$5)","v":""}]
[null,16,null,null,null,null,null,null,null,null,null,null,null,null,null,null,null,null,null,null,null,"",null,null,null,null,null,null,null,null,null,null,null,null,null,null,null,null,null,null,null,{"$f":"IF(AND(ISBLANK(E23),ISBLANK(F23)),\"\",'Küldő-Mérlegkör-Elosztó'!$B$6)","v":""},{"$f":"IF(AND(ISBLANK(E23),ISBLANK(F23)),\"\",'Küldő-Mérlegkör-Elosztó'!$B$3)","v":""},{"$f":"IF(AND(ISBLANK(E23),ISBLANK(F23)),\"\",'Küldő-Mérlegkör-Elosztó'!$B$4)","v":""},{"$f":"IF(AND(ISBLANK(E23),ISBLANK(F23)),\"\",'Küldő-Mérlegkör-Elosztó'!$B$5)","v":""}]
[null,17,null,null,null,null,null,null,null,null,null,null,null,null,null,null,null,null,null,null,null,"",null,null,null,null,null,null,null,null,null,null,null,null,null,null,null,null,null,null,null,{"$f":"IF(AND(ISBLANK(E24),ISBLANK(F24)),\"\",'Küldő-Mérlegkör-Elosztó'!$B$6)","v":""},{"$f":"IF(AND(ISBLANK(E24),ISBLANK(F24)),\"\",'Küldő-Mérlegkör-Elosztó'!$B$3)","v":""},{"$f":"IF(AND(ISBLANK(E24),ISBLANK(F24)),\"\",'Küldő-Mérlegkör-Elosztó'!$B$4)","v":""},{"$f":"IF(AND(ISBLANK(E24),ISBLANK(F24)),\"\",'Küldő-Mérlegkör-Elosztó'!$B$5)","v":""}]
[null,18,null,null,null,null,null,null,null,null,null,null,null,null,null,null,null,null,null,null,null,"",null,null,null,null,null,null,null,null,null,null,null,null,null,null,null,null,null,null,null,{"$f":"IF(AND(ISBLANK(E25),ISBLANK(F25)),\"\",'Küldő-Mérlegkör-Elosztó'!$B$6)","v":""},{"$f":"IF(AND(ISBLANK(E25),ISBLANK(F25)),\"\",'Küldő-Mérlegkör-Elosztó'!$B$3)","v":""},{"$f":"IF(AND(ISBLANK(E25),ISBLANK(F25)),\"\",'Küldő-Mérlegkör-Elosztó'!$B$4)","v":""},{"$f":"IF(AND(ISBLANK(E25),ISBLANK(F25)),\"\",'Küldő-Mérlegkör-Elosztó'!$B$5)","v":""}]
[null,19,null,null,null,null,null,null,null,null,null,null,null,null,null,null,null,null,null,null,null,"",null,null,null,null,null,null,null,null,null,null,null,null,null,null,null,null,null,null,null,{"$f":"IF(AND(ISBLANK(E26),ISBLANK(F26)),\"\",'Küldő-Mérlegkör-Elosztó'!$B$6)","v":""},{"$f":"IF(AND(ISBLANK(E26),ISBLANK(F26)),\"\",'Küldő-Mérlegkör-Elosztó'!$B$3)","v":""},{"$f":"IF(AND(ISBLANK(E26),ISBLANK(F26)),\"\",'Küldő-Mérlegkör-Elosztó'!$B$4)","v":""},{"$f":"IF(AND(ISBLANK(E26),ISBLANK(F26)),\"\",'Küldő-Mérlegkör-Elosztó'!$B$5)","v":""}]
[null,20,null,null,null,null,null,null,null,null,null,null,null,null,null,null,null,null,null,null,null,"",null,null,null,null,null,null,null,null,null,null,null,null,null,null,null,null,null,null,null,{"$f":"IF(AND(ISBLANK(E27),ISBLANK(F27)),\"\",'Küldő-Mérlegkör-Elosztó'!$B$6)","v":""},{"$f":"IF(AND(ISBLANK(E27),ISBLANK(F27)),\"\",'Küldő-Mérlegkör-Elosztó'!$B$3)","v":""},{"$f":"IF(AND(ISBLANK(E27),ISBLANK(F27)),\"\",'Küldő-Mérlegkör-Elosztó'!$B$4)","v":""},{"$f":"IF(AND(ISBLANK(E27),ISBLANK(F27)),\"\",'Küldő-Mérlegkör-Elosztó'!$B$5)","v":""}]
[null,21,null,null,null,null,null,null,null,null,null,null,null,null,null,null,null,null,null,null,null,"",null,null,null,null,null,null,null,null,null,null,null,null,null,null,null,null,null,null,null,{"$f":"IF(AND(ISBLANK(E28),ISBLANK(F28)),\"\",'Küldő-Mérlegkör-Elosztó'!$B$6)","v":""},{"$f":"IF(AND(ISBLANK(E28),ISBLANK(F28)),\"\",'Küldő-Mérlegkör-Elosztó'!$B$3)","v":""},{"$f":"IF(AND(ISBLANK(E28),ISBLANK(F28)),\"\",'Küldő-Mérlegkör-Elosztó'!$B$4)","v":""},{"$f":"IF(AND(ISBLANK(E28),ISBLANK(F28)),\"\",'Küldő-Mérlegkör-Elosztó'!$B$5)","v":""}]
[null,22,null,null,null,null,null,null,null,null,null,null,null,null,null,null,null,null,null,null,null,"",null,null,null,null,null,null,null,null,null,null,null,null,null,null,null,null,null,null,null,{"$f":"IF(AND(ISBLANK(E29),ISBLANK(F29)),\"\",'Küldő-Mérlegkör-Elosztó'!$B$6)","v":""},{"$f":"IF(AND(ISBLANK(E29),ISBLANK(F29)),\"\",'Küldő-Mérlegkör-Elosztó'!$B$3)","v":""},{"$f":"IF(AND(ISBLANK(E29),ISBLANK(F29)),\"\",'Küldő-Mérlegkör-Elosztó'!$B$4)","v":""},{"$f":"IF(AND(ISBLANK(E29),ISBLANK(F29)),\"\",'Küldő-Mérlegkör-Elosztó'!$B$5)","v":""}]
[null,23,null,null,null,null,null,null,null,null,null,null,null,null,null,null,null,null,null,null,null,"",null,null,null,null,null,null,null,null,null,null,null,null,null,null,null,null,null,null,null,{"$f":"IF(AND(ISBLANK(E30),ISBLANK(F30)),\"\",'Küldő-Mérlegkör-Elosztó'!$B$6)","v":""},{"$f":"IF(AND(ISBLANK(E30),ISBLANK(F30)),\"\",'Küldő-Mérlegkör-Elosztó'!$B$3)","v":""},{"$f":"IF(AND(ISBLANK(E30),ISBLANK(F30)),\"\",'Küldő-Mérlegkör-Elosztó'!$B$4)","v":""},{"$f":"IF(AND(ISBLANK(E30),ISBLANK(F30)),\"\",'Küldő-Mérlegkör-Elosztó'!$B$5)","v":""}]
[null,24,null,null,null,null,null,null,null,null,null,null,null,null,null,null,null,null,null,null,null,"",null,null,null,null,null,null,null,null,null,null,null,null,null,null,null,null,null,null,null,{"$f":"IF(AND(ISBLANK(E31),ISBLANK(F31)),\"\",'Küldő-Mérlegkör-Elosztó'!$B$6)","v":""},{"$f":"IF(AND(ISBLANK(E31),ISBLANK(F31)),\"\",'Küldő-Mérlegkör-Elosztó'!$B$3)","v":""},{"$f":"IF(AND(ISBLANK(E31),ISBLANK(F31)),\"\",'Küldő-Mérlegkör-Elosztó'!$B$4)","v":""},{"$f":"IF(AND(ISBLANK(E31),ISBLANK(F31)),\"\",'Küldő-Mérlegkör-Elosztó'!$B$5)","v":""}]
[null,25,null,null,null,null,null,null,null,null,null,null,null,null,null,null,null,null,null,null,null,"",null,null,null,null,null,null,null,null,null,null,null,null,null,null,null,null,null,null,null,{"$f":"IF(AND(ISBLANK(E32),ISBLANK(F32)),\"\",'Küldő-Mérlegkör-Elosztó'!$B$6)","v":""},{"$f":"IF(AND(ISBLANK(E32),ISBLANK(F32)),\"\",'Küldő-Mérlegkör-Elosztó'!$B$3)","v":""},{"$f":"IF(AND(ISBLANK(E32),ISBLANK(F32)),\"\",'Küldő-Mérlegkör-Elosztó'!$B$4)","v":""},{"$f":"IF(AND(ISBLANK(E32),ISBLANK(F32)),\"\",'Küldő-Mérlegkör-Elosztó'!$B$5)","v":""}]
[null,26,null,null,null,null,null,null,null,null,null,null,null,null,null,null,null,null,null,null,null,"",null,null,null,null,null,null,null,null,null,null,null,null,null,null,null,null,null,null,null,{"$f":"IF(AND(ISBLANK(E33),ISBLANK(F33)),\"\",'Küldő-Mérlegkör-Elosztó'!$B$6)","v":""},{"$f":"IF(AND(ISBLANK(E33),ISBLANK(F33)),\"\",'Küldő-Mérlegkör-Elosztó'!$B$3)","v":""},{"$f":"IF(AND(ISBLANK(E33),ISBLANK(F33)),\"\",'Küldő-Mérlegkör-Elosztó'!$B$4)","v":""},{"$f":"IF(AND(ISBLANK(E33),ISBLANK(F33)),\"\",'Küldő-Mérlegkör-Elosztó'!$B$5)","v":""}]
[null,27,null,null,null,null,null,null,null,null,null,null,null,null,null,null,null,null,null,null,null,"",null,null,null,null,null,null,null,null,null,null,null,null,null,null,null,null,null,null,null,{"$f":"IF(AND(ISBLANK(E34),ISBLANK(F34)),\"\",'Küldő-Mérlegkör-Elosztó'!$B$6)","v":""},{"$f":"IF(AND(ISBLANK(E34),ISBLANK(F34)),\"\",'Küldő-Mérlegkör-Elosztó'!$B$3)","v":""},{"$f":"IF(AND(ISBLANK(E34),ISBLANK(F34)),\"\",'Küldő-Mérlegkör-Elosztó'!$B$4)","v":""},{"$f":"IF(AND(ISBLANK(E34),ISBLANK(F34)),\"\",'Küldő-Mérlegkör-Elosztó'!$B$5)","v":""}]
[null,28,null,null,null,null,null,null,null,null,null,null,null,null,null,null,null,null,null,null,null,"",null,null,null,null,null,null,null,null,null,null,null,null,null,null,null,null,null,null,null,{"$f":"IF(AND(ISBLANK(E35),ISBLANK(F35)),\"\",'Küldő-Mérlegkör-Elosztó'!$B$6)","v":""},{"$f":"IF(AND(ISBLANK(E35),ISBLANK(F35)),\"\",'Küldő-Mérlegkör-Elosztó'!$B$3)","v":""},{"$f":"IF(AND(ISBLANK(E35),ISBLANK(F35)),\"\",'Küldő-Mérlegkör-Elosztó'!$B$4)","v":""},{"$f":"IF(AND(ISBLANK(E35),ISBLANK(F35)),\"\",'Küldő-Mérlegkör-Elosztó'!$B$5)","v":""}]
[null,29,null,null,null,null,null,null,null,null,null,null,null,null,null,null,null,null,null,null,null,{"$f":"IF(T36<>\"Profilos\",\"\",VLOOKUP(U36,INDIRECT(\"Beállítás!B\" & $V$1 & \":C\" & $V$2),2,FALSE))","v":""},null,null,null,null,null,null,null,null,null,null,null,null,null,null,null,null,null,null,null,{"$f":"IF(AND(ISBLANK(E36),ISBLANK(F36)),\"\",'Küldő-Mérlegkör-Elosztó'!$B$6)","v":""},{"$f":"IF(AND(ISBLANK(E36),ISBLANK(F36)),\"\",'Küldő-Mérlegkör-Elosztó'!$B$3)","v":""},{"$f":"IF(AND(ISBLANK(E36),ISBLANK(F36)),\"\",'Küldő-Mérlegkör-Elosztó'!$B$4)","v":""},{"$f":"IF(AND(ISBLANK(E36),ISBLANK(F36)),\"\",'Küldő-Mérlegkör-Elosztó'!$B$5)","v":""}]
[null,30,null,null,null,null,null,null,null,null,null,null,null,null,null,null,null,null,null,null,null,"",null,null,null,null,null,null,null,null,null,null,null,null,null,null,null,null,null,null,null,{"$f":"IF(AND(ISBLANK(E37),ISBLANK(F37)),\"\",'Küldő-Mérlegkör-Elosztó'!$B$6)","v":""},{"$f":"IF(AND(ISBLANK(E37),ISBLANK(F37)),\"\",'Küldő-Mérlegkör-Elosztó'!$B$3)","v":""},{"$f":"IF(AND(ISBLANK(E37),ISBLANK(F37)),\"\",'Küldő-Mérlegkör-Elosztó'!$B$4)","v":""},{"$f":"IF(AND(ISBLANK(E37),ISBLANK(F37)),\"\",'Küldő-Mérlegkör-Elosztó'!$B$5)","v":""}]
[null,31,null,null,null,null,null,null,null,null,null,null,null,null,null,null,null,null,null,null,null,"",null,null,null,null,null,null,null,null,null,null,null,null,null,null,null,null,null,null,null,{"$f":"IF(AND(ISBLANK(E38),ISBLANK(F38)),\"\",'Küldő-Mérlegkör-Elosztó'!$B$6)","v":""},{"$f":"IF(AND(ISBLANK(E38),ISBLANK(F38)),\"\",'Küldő-Mérlegkör-Elosztó'!$B$3)","v":""},{"$f":"IF(AND(ISBLANK(E38),ISBLANK(F38)),\"\",'Küldő-Mérlegkör-Elosztó'!$B$4)","v":""},{"$f":"IF(AND(ISBLANK(E38),ISBLANK(F38)),\"\",'Küldő-Mérlegkör-Elosztó'!$B$5)","v":""}]
[null,32,null,null,null,null,null,null,null,null,null,null,null,null,null,null,null,null,null,null,null,"",null,null,null,null,null,null,null,null,null,null,null,null,null,null,null,null,null,null,null,{"$f":"IF(AND(ISBLANK(E39),ISBLANK(F39)),\"\",'Küldő-Mérlegkör-Elosztó'!$B$6)","v":""},{"$f":"IF(AND(ISBLANK(E39),ISBLANK(F39)),\"\",'Küldő-Mérlegkör-Elosztó'!$B$3)","v":""},{"$f":"IF(AND(ISBLANK(E39),ISBLANK(F39)),\"\",'Küldő-Mérlegkör-Elosztó'!$B$4)","v":""},{"$f":"IF(AND(ISBLANK(E39),ISBLANK(F39)),\"\",'Küldő-Mérlegkör-Elosztó'!$B$5)","v":""}]
[null,33,null,null,null,null,null,null,null,null,null,null,null,null,null,null,null,null,null,null,null,"",null,null,null,null,null,null,null,null,null,null,null,null,null,null,null,null,null,null,null,{"$f":"IF(AND(ISBLANK(E40),ISBLANK(F40)),\"\",'Küldő-Mérlegkör-Elosztó'!$B$6)","v":""},{"$f":"IF(AND(ISBLANK(E40),ISBLANK(F40)),\"\",'Küldő-Mérlegkör-Elosztó'!$B$3)","v":""},{"$f":"IF(AND(ISBLANK(E40),ISBLANK(F40)),\"\",'Küldő-Mérlegkör-Elosztó'!$B$4)","v":""},{"$f":"IF(AND(ISBLANK(E40),ISBLANK(F40)),\"\",'Küldő-Mérlegkör-Elosztó'!$B$5)","v":""}]
[null,34,null,null,null,null,null,null,null,null,null,null,null,null,null,null,null,null,null,null,null,"",null,null,null,null,null,null,null,null,null,null,null,null,null,null,null,null,null,null,null,{"$f":"IF(AND(ISBLANK(E41),ISBLANK(F41)),\"\",'Küldő-Mérlegkör-Elosztó'!$B$6)","v":""},{"$f":"IF(AND(ISBLANK(E41),ISBLANK(F41)),\"\",'Küldő-Mérlegkör-Elosztó'!$B$3)","v":""},{"$f":"IF(AND(ISBLANK(E41),ISBLANK(F41)),\"\",'Küldő-Mérlegkör-Elosztó'!$B$4)","v":""},{"$f":"IF(AND(ISBLANK(E41),ISBLANK(F41)),\"\",'Küldő-Mérlegkör-Elosztó'!$B$5)","v":""}]
[null,35,null,null,null,null,null,null,null,null,null,null,null,null,null,null,null,null,null,null,null,"",null,null,null,null,null,null,null,null,null,null,null,null,null,null,null,null,null,null,null,{"$f":"IF(AND(ISBLANK(E42),ISBLANK(F42)),\"\",'Küldő-Mérlegkör-Elosztó'!$B$6)","v":""},{"$f":"IF(AND(ISBLANK(E42),ISBLANK(F42)),\"\",'Küldő-Mérlegkör-Elosztó'!$B$3)","v":""},{"$f":"IF(AND(ISBLANK(E42),ISBLANK(F42)),\"\",'Küldő-Mérlegkör-Elosztó'!$B$4)","v":""},{"$f":"IF(AND(ISBLANK(E42),ISBLANK(F42)),\"\",'Küldő-Mérlegkör-Elosztó'!$B$5)","v":""}]
[null,36,null,null,null,null,null,null,null,null,null,null,null,null,null,null,null,null,null,null,null,"",null,null,null,null,null,null,null,null,null,null,null,null,null,null,null,null,null,null,null,{"$f":"IF(AND(ISBLANK(E43),ISBLANK(F43)),\"\",'Küldő-Mérlegkör-Elosztó'!$B$6)","v":""},{"$f":"IF(AND(ISBLANK(E43),ISBLANK(F43)),\"\",'Küldő-Mérlegkör-Elosztó'!$B$3)","v":""},{"$f":"IF(AND(ISBLANK(E43),ISBLANK(F43)),\"\",'Küldő-Mérlegkör-Elosztó'!$B$4)","v":""},{"$f":"IF(AND(ISBLANK(E43),ISBLANK(F43)),\"\",'Küldő-Mérlegkör-Elosztó'!$B$5)","v":""}]
[null,37,null,null,null,null,null,null,null,null,null,null,null,null,null,null,null,null,null,null,null,"",null,null,null,null,null,null,null,null,null,null,null,null,null,null,null,null,null,null,null,{"$f":"IF(AND(ISBLANK(E44),ISBLANK(F44)),\"\",'Küldő-Mérlegkör-Elosztó'!$B$6)","v":""},{"$f":"IF(AND(ISBLANK(E44),ISBLANK(F44)),\"\",'Küldő-Mérlegkör-Elosztó'!$B$3)","v":""},{"$f":"IF(AND(ISBLANK(E44),ISBLANK(F44)),\"\",'Küldő-Mérlegkör-Elosztó'!$B$4)","v":""},{"$f":"IF(AND(ISBLANK(E44),ISBLANK(F44)),\"\",'Küldő-Mérlegkör-Elosztó'!$B$5)","v":""}]
[null,38,null,null,null,null,null,null,null,null,null,null,null,null,null,null,null,null,null,null,null,"",null,null,null,null,null,null,null,null,null,null,null,null,null,null,null,null,null,null,null,{"$f":"IF(AND(ISBLANK(E45),ISBLANK(F45)),\"\",'Küldő-Mérlegkör-Elosztó'!$B$6)","v":""},{"$f":"IF(AND(ISBLANK(E45),ISBLANK(F45)),\"\",'Küldő-Mérlegkör-Elosztó'!$B$3)","v":""},{"$f":"IF(AND(ISBLANK(E45),ISBLANK(F45)),\"\",'Küldő-Mérlegkör-Elosztó'!$B$4)","v":""},{"$f":"IF(AND(ISBLANK(E45),ISBLANK(F45)),\"\",'Küldő-Mérlegkör-Elosztó'!$B$5)","v":""}]
[null,39,null,null,null,null,null,null,null,null,null,null,null,null,null,null,null,null,null,null,null,"",null,null,null,null,null,null,null,null,null,null,null,null,null,null,null,null,null,null,null,{"$f":"IF(AND(ISBLANK(E46),ISBLANK(F46)),\"\",'Küldő-Mérlegkör-Elosztó'!$B$6)","v":""},{"$f":"IF(AND(ISBLANK(E46),ISBLANK(F46)),\"\",'Küldő-Mérlegkör-Elosztó'!$B$3)","v":""},{"$f":"IF(AND(ISBLANK(E46),ISBLANK(F46)),\"\",'Küldő-Mérlegkör-Elosztó'!$B$4)","v":""},{"$f":"IF(AND(ISBLANK(E46),ISBLANK(F46)),\"\",'Küldő-Mérlegkör-Elosztó'!$B$5)","v":""}]
[null,40,null,null,null,null,null,null,null,null,null,null,null,null,null,null,null,null,null,null,null,"",null,null,null,null,null,null,null,null,null,null,null,null,null,null,null,null,null,null,null,{"$f":"IF(AND(ISBLANK(E47),ISBLANK(F47)),\"\",'Küldő-Mérlegkör-Elosztó'!$B$6)","v":""},{"$f":"IF(AND(ISBLANK(E47),ISBLANK(F47)),\"\",'Küldő-Mérlegkör-Elosztó'!$B$3)","v":""},{"$f":"IF(AND(ISBLANK(E47),ISBLANK(F47)),\"\",'Küldő-Mérlegkör-Elosztó'!$B$4)","v":""},{"$f":"IF(AND(ISBLANK(E47),ISBLANK(F47)),\"\",'Küldő-Mérlegkör-Elosztó'!$B$5)","v":""}]
[null,41,null,null,null,null,null,null,null,null,null,null,null,null,null,null,null,null,null,null,null,"",null,null,null,null,null,null,null,null,null,null,null,null,null,null,null,null,null,null,null,{"$f":"IF(AND(ISBLANK(E48),ISBLANK(F48)),\"\",'Küldő-Mérlegkör-Elosztó'!$B$6)","v":""},{"$f":"IF(AND(ISBLANK(E48),ISBLANK(F48)),\"\",'Küldő-Mérlegkör-Elosztó'!$B$3)","v":""},{"$f":"IF(AND(ISBLANK(E48),ISBLANK(F48)),\"\",'Küldő-Mérlegkör-Elosztó'!$B$4)","v":""},{"$f":"IF(AND(ISBLANK(E48),ISBLANK(F48)),\"\",'Küldő-Mérlegkör-Elosztó'!$B$5)","v":""}]
[null,42,null,null,null,null,null,null,null,null,null,null,null,null,null,null,null,null,null,null,null,"",null,null,null,null,null,null,null,null,null,null,null,null,null,null,null,null,null,null,null,{"$f":"IF(AND(ISBLANK(E49),ISBLANK(F49)),\"\",'Küldő-Mérlegkör-Elosztó'!$B$6)","v":""},{"$f":"IF(AND(ISBLANK(E49),ISBLANK(F49)),\"\",'Küldő-Mérlegkör-Elosztó'!$B$3)","v":""},{"$f":"IF(AND(ISBLANK(E49),ISBLANK(F49)),\"\",'Küldő-Mérlegkör-Elosztó'!$B$4)","v":""},{"$f":"IF(AND(ISBLANK(E49),ISBLANK(F49)),\"\",'Küldő-Mérlegkör-Elosztó'!$B$5)","v":""}]
[null,43,null,null,null,null,null,null,null,null,null,null,null,null,null,null,null,null,null,null,null,"",null,null,null,null,null,null,null,null,null,null,null,null,null,null,null,null,null,null,null,{"$f":"IF(AND(ISBLANK(E50),ISBLANK(F50)),\"\",'Küldő-Mérlegkör-Elosztó'!$B$6)","v":""},{"$f":"IF(AND(ISBLANK(E50),ISBLANK(F50)),\"\",'Küldő-Mérlegkör-Elosztó'!$B$3)","v":""},{"$f":"IF(AND(ISBLANK(E50),ISBLANK(F50)),\"\",'Küldő-Mérlegkör-Elosztó'!$B$4)","v":""},{"$f":"IF(AND(ISBLANK(E50),ISBLANK(F50)),\"\",'Küldő-Mérlegkör-Elosztó'!$B$5)","v":""}]
[null,44,null,null,null,null,null,null,null,null,null,null,null,null,null,null,null,null,null,null,null,"",null,null,null,null,null,null,null,null,null,null,null,null,null,null,null,null,null,null,null,{"$f":"IF(AND(ISBLANK(E51),ISBLANK(F51)),\"\",'Küldő-Mérlegkör-Elosztó'!$B$6)","v":""},{"$f":"IF(AND(ISBLANK(E51),ISBLANK(F51)),\"\",'Küldő-Mérlegkör-Elosztó'!$B$3)","v":""},{"$f":"IF(AND(ISBLANK(E51),ISBLANK(F51)),\"\",'Küldő-Mérlegkör-Elosztó'!$B$4)","v":""},{"$f":"IF(AND(ISBLANK(E51),ISBLANK(F51)),\"\",'Küldő-Mérlegkör-Elosztó'!$B$5)","v":""}]
[null,45,null,null,null,null,null,null,null,null,null,null,null,null,null,null,null,null,null,null,null,"",null,null,null,null,null,null,null,null,null,null,null,null,null,null,null,null,null,null,null,{"$f":"IF(AND(ISBLANK(E52),ISBLANK(F52)),\"\",'Küldő-Mérlegkör-Elosztó'!$B$6)","v":""},{"$f":"IF(AND(ISBLANK(E52),ISBLANK(F52)),\"\",'Küldő-Mérlegkör-Elosztó'!$B$3)","v":""},{"$f":"IF(AND(ISBLANK(E52),ISBLANK(F52)),\"\",'Küldő-Mérlegkör-Elosztó'!$B$4)","v":""},{"$f":"IF(AND(ISBLANK(E52),ISBLANK(F52)),\"\",'Küldő-Mérlegkör-Elosztó'!$B$5)","v":""}]
[null,46,null,null,null,null,null,null,null,null,null,null,null,null,null,null,null,null,null,null,null,"",null,null,null,null,null,null,null,null,null,null,null,null,null,null,null,null,null,null,null,{"$f":"IF(AND(ISBLANK(E53),ISBLANK(F53)),\"\",'Küldő-Mérlegkör-Elosztó'!$B$6)","v":""},{"$f":"IF(AND(ISBLANK(E53),ISBLANK(F53)),\"\",'Küldő-Mérlegkör-Elosztó'!$B$3)","v":""},{"$f":"IF(AND(ISBLANK(E53),ISBLANK(F53)),\"\",'Küldő-Mérlegkör-Elosztó'!$B$4)","v":""},{"$f":"IF(AND(ISBLANK(E53),ISBLANK(F53)),\"\",'Küldő-Mérlegkör-Elosztó'!$B$5)","v":""}]
[null,47,null,null,null,null,null,null,null,null,null,null,null,null,null,null,null,null,null,null,null,"",null,null,null,null,null,null,null,null,null,null,null,null,null,null,null,null,null,null,null,{"$f":"IF(AND(ISBLANK(E54),ISBLANK(F54)),\"\",'Küldő-Mérlegkör-Elosztó'!$B$6)","v":""},{"$f":"IF(AND(ISBLANK(E54),ISBLANK(F54)),\"\",'Küldő-Mérlegkör-Elosztó'!$B$3)","v":""},{"$f":"IF(AND(ISBLANK(E54),ISBLANK(F54)),\"\",'Küldő-Mérlegkör-Elosztó'!$B$4)","v":""},{"$f":"IF(AND(ISBLANK(E54),ISBLANK(F54)),\"\",'Küldő-Mérlegkör-Elosztó'!$B$5)","v":""}]
[null,48,null,null,null,null,null,null,null,null,null,null,null,null,null,null,null,null,null,null,null,"",null,null,null,null,null,null,null,null,null,null,null,null,null,null,null,null,null,null,null,{"$f":"IF(AND(ISBLANK(E55),ISBLANK(F55)),\"\",'Küldő-Mérlegkör-Elosztó'!$B$6)","v":""},{"$f":"IF(AND(ISBLANK(E55),ISBLANK(F55)),\"\",'Küldő-Mérlegkör-Elosztó'!$B$3)","v":""},{"$f":"IF(AND(ISBLANK(E55),ISBLANK(F55)),\"\",'Küldő-Mérlegkör-Elosztó'!$B$4)","v":""},{"$f":"IF(AND(ISBLANK(E55),ISBLANK(F55)),\"\",'Küldő-Mérlegkör-Elosztó'!$B$5)","v":""}]
[null,49,null,null,null,null,null,null,null,null,null,null,null,null,null,null,null,null,null,null,null,"",null,null,null,null,null,null,null,null,null,null,null,null,null,null,null,null,null,null,null,{"$f":"IF(AND(ISBLANK(E56),ISBLANK(F56)),\"\",'Küldő-Mérlegkör-Elosztó'!$B$6)","v":""},{"$f":"IF(AND(ISBLANK(E56),ISBLANK(F56)),\"\",'Küldő-Mérlegkör-Elosztó'!$B$3)","v":""},{"$f":"IF(AND(ISBLANK(E56),ISBLANK(F56)),\"\",'Küldő-Mérlegkör-Elosztó'!$B$4)","v":""},{"$f":"IF(AND(ISBLANK(E56),ISBLANK(F56)),\"\",'Küldő-Mérlegkör-Elosztó'!$B$5)","v":""}]
[null,50,null,null,null,null,null,null,null,null,null,null,null,null,null,null,null,null,null,null,null,"",null,null,null,null,null,null,null,null,null,null,null,null,null,null,null,null,null,null,null,{"$f":"IF(AND(ISBLANK(E57),ISBLANK(F57)),\"\",'Küldő-Mérlegkör-Elosztó'!$B$6)","v":""},{"$f":"IF(AND(ISBLANK(E57),ISBLANK(F57)),\"\",'Küldő-Mérlegkör-Elosztó'!$B$3)","v":""},{"$f":"IF(AND(ISBLANK(E57),ISBLANK(F57)),\"\",'Küldő-Mérlegkör-Elosztó'!$B$4)","v":""},{"$f":"IF(AND(ISBLANK(E57),ISBLANK(F57)),\"\",'Küldő-Mérlegkör-Elosztó'!$B$5)","v":""}]

{"sheet":"Beállítás","index":2,"n_rows":239,"n_cols":12,"rows_kept":239,"cut":false,"hidden":false,"merged":[]}
[]
["Lista megnevezése",null,"Elosztók","FelhTípus","ProfilCsop","Mérlegkör","Kereskedő","Mértékegység","RHDfizető","RkLeolv","Státusz","StátuszDSO"]
[null,"Kezdő sorszám",{"$f":"MATCH(C2,$A$1:$A$569,0)+2","v":8},{"$f":"MATCH(D2,$A$1:$A$569,0)+2","v":19},{"$f":"MATCH(E2,$A$1:$A$569,0)+2","v":24},{"$f":"MATCH(F2,$A$1:$A$569,0)+2","v":50},{"$f":"MATCH(G2,$A$1:$A$569,0)+2","v":113},{"$f":"MATCH(H2,$A$1:$A$569,0)+2","v":199},{"$f":"MATCH(I2,$A$1:$A$569,0)+2","v":205},{"$f":"MATCH(J2,$A$1:$A$569,0)+2","v":210},{"$f":"MATCH(K2,$A$1:$A$569,0)+2","v":215},{"$f":"MATCH(L2,$A$1:$A$569,0)+2","v":235}]
[null,"Utolsó sorszám",{"$f":"INDIRECT(\"C\" & (C3-2)) + C3-1","v":15},20,46,109,195,201,206,211,222,239]
[]
["Elosztók",null,{"$f":"COUNTA(B8:B16)","v":8},null,null,null,"Kod","Megnevezes"]
[null,"Megnevezés","Rövidnév","Azonosító",null,null,"1","Hibás POD azonosító"]
[null,"ELMŰ Hálózati Kft","ELMÛ_DER","EHE000210",null,null,"2","Kereskedő küldés dátum eltér a valós küldés dátumtól"]
[null,"ÉMÁSZ Hálózati Kft.","ÉMÁSZ_DER","EHE000220",null,null,"3","Fájlnévben megjelölt T-nap eltér a kijelentés dátumától"]
[null,"ELMŰ-ÉMÁSZ Hálózati Kft.","RWE","EHE000200",null,null,"4","Fájlnévben megjelölt T-nap eltér a bejelentés dátumától"]
[null,"E.ON Észak-dunántúli Áramhálózati Zrt.","EED","EHE000110",null,null,"5","Kijelentés elkésett"]
[null,"E.ON Dél-dunántúli Áramhálózati Zrt.","EDE","EHE000120",null,null,"6","Bejelentés elkésett"]
[null,"E.ON Tiszántúli Áramhálózati Zrt.","ETI","EHE000130",null,null,"7","Hibás vagy hiányzó kereskedői státusz (kötelező)"]
[null,"E.ON Áramhálózati Zrt.","EON","EHE000100",null,null,"8","DSO státusz mező csak üres lehet"]
[null,"NKM Áramhálózati Kft.","Démász","EHE000310",null,null,"9","Ellátás alapú szerződés azonosítója mező üres (kötelező)"]
[null,null,null,null,null,null,"A","Hibás vagy hiányzó RHD fizeto mező"]
["FelhTípus",null,{"$f":"COUNTA(B19:B21)","v":2},null,null,null,"B","Kapcsolat tartó adatai üresek (kötelező)"]
[null,"Megnevezés",null,null,null,null,"C","Hibás Elosztó kiválasztás"]
[null,"Idősoros",null,null,null,null,"D","MP nem azonosítható"]
[null,"Profilos",null,null,null,null,"E","Ismeretlen fogyasztó"]
[null,null,null,null,null,null,"F","FH azonosító eltér"]
["ProfilCsop",null,{"$f":"COUNTA(B24:B47)","v":23},null,null,null,"G","Nem lehetséges több hibajavítás"]
[null,"Megnevezés","Kód","Megnevezés",null,null,"H","Hibajavítás után MP nem lehet ellátatlan"]
[null,"Állandó fogyasztás ","ALL_01 ","Állandó fogyasztás ",null,null,"I","Ismétlődő bejelentés"]
[null,"Általános vezérelt  ELMŰ","VEZELM","Általános vezérelt  ELMŰ",null,null,"J","Rendkívüli kijelentés HI.UTAN SZERZ.FELM feltétele nem teljesül"]
[null,"Általános vezérelt ÉMÁSZ","VEZEMA","Általános vezérelt ÉMÁSZ",null,null,"K","Kereskedő ezt a POD-ot nem jelentheti ki"]
[null,"Csökkentett közvilágítási naptáras","KZVC01","Csökkentett közvilágítási naptáras",null,null,"L","Kereskedői verseny"]
[null,"Kisüzleti 1.","UZL_01","Kisüzleti 1.",null,null,"M","POD nem ellátatlan"]
[null,"Kisüzleti 2.","UZL_02","Kisüzleti 2.",null,null,"N","Nincs MK egység"]
[null,"Kisüzleti 3.","UZL_03","Kisüzleti 3.",null,null,"O","Előre fizetős mérőn kereskedőváltás nem lehetséges"]
[null,"Kisüzleti 4.","UZL_04","Kisüzleti 4.",null,null,"P","Ma nincs szerződés"]
[null,"Kisüzleti általános","UZL_00","Kisüzleti általános",null,null,"Q","Hibas KER-MKE összerendelés"]
[null,"Közvilágítás díszvilágítás","KZVD01","Közvilágítás díszvilágítás",null,null,"R","POD már szerepel"]
[null,"Közvilágítás egészéjszakás","KZVE01","Közvilágítás egészéjszakás",null,null,"S","Be/Kijelentésnek nincs egyeztetett párja"]
[null,"Közvilágítás egészéjszakás M","MERTKV","Közvilágítás egészéjszakás M",null,null,"T","Újbekapcsolás, bejelentés nem engedélyezett"]
[null,"Közvilágítás féléjszakás","KZVF01","Közvilágítás féléjszakás",null,null,"U",""]
[null,"Lakossági és közösségi Budapest","LAK_01","Lakossági és közösségi Budapest",null,null,"V",""]
[null,"Lakossági és közösségi Budapesten kívül","LAK_02","Lakossági és közösségi Budapesten kívül",null,null,"W",""]
[null,"Nappali közvilágítás","NAPPAL","Nappali közvilágítás",null,null,"X",""]
[null,"Vezérelt mélyvölgy 01","VEZ_M01","Vezérelt mélyvölgy 01",null,null,"Y",""]
[null,"Vezérelt mélyvölgy 02","VEZ_M02","Vezérelt mélyvölgy 02",null,null,"Z",""]
[null,"Vezérelt mélyvölgy 03","VEZ_M03","Vezérelt mélyvölgy 03"]
[null,"Vezérelt, külön mért","VEZ_00","Vezérelt, külön mért"]
[null,"Vezérelt, külön mért 1","VEZ_01","Vezérelt, külön mért 1"]
[null,"Vezérelt, külön mért GEO","GEO_00","Vezérelt, külön mért GEO"]
[null,"Vezérelt, külön mért H","HTARIF","Vezérelt, külön mért H"]
[]
["Mérlegkör",null,{"$f":"COUNTA(B50:B110)","v":60}]
[null,"Megnevezés","Rövid név","EIC-kód"]
[null,"AES Borsodi Energetikai Kft.","AES-B-ENERGETIKA","15X-AES-BEN-KFT4"]
[null,"AES Borsodi Energetikai Kft., Huntrade mérlegkör","AES-HUNTRADE-BC","15X-AES-HUNTRAD9"]
[null,"Alpiq Energy SE Magyarországi Fióktelepe","ATEL-PANNON_BC","15X-ATEL-PANNONR"]
[null,"ALTEO Nyrt.","ALTEO-HUN-BC","15X-ALTEO-HUN--J"]
[null,"ÁRPÁD Energia Kereskedelmi Kft.","ARPAD-ENERGIA-BC","15X-ARPADEN----5"]
[null,"BanKonzult Pénzügyi és Gazdasági Tanácsadó Kft.","BANKONZ-BC","15X-BANKONZ----Z"]
[null,"BC-Energiakereskedő Kft.","BC-HUN-BC","15X-BC-ENERGIA-A"]
[null,"Budapesti Energiakereskedő Kft.","E-BUDAI-BC","15X-E-BUDAI----O"]
[null,"CEZ Magyarország Kft.","CEZ-HUN-BC","15X-CEZ-HUN----G"]
[null,"Coal Energy Budapest Kft.","CE-BUD-BC","15X-CEBUD------0"]
[null,"DBK-Brikettgyár Kft.","DBK-HUN-BC","15X-DBK-HUN----2"]
[null,"Debreceni Kombinált Ciklusú Erőmű Kft.","DKCE_BC","15X-DKCE-------K"]
[null,"Dunamenti Erőmű Rt.","DUMERT-BC","15X-DUMERT-----5"]
[null,"E and t Hungária Energia-keresekedelmi Kft.","ET-HUN-BC","15X-ET-HUN-----3"]
[null,"E.ON Energiakereskedelmi Kft.","EON_HUN_BC","15X-EON-EKER---A"]
[null,"EFT Budapest Zrt.","EFT_BUD_BC","15X-EFT-BUD----1"]
[null,"ELECTRABEL Magyarország Kft.","ELECTRABEL-BC","15X-ELECTRABEL-A"]
[null,"Elektra Energia Kereskedelmi Kft.","ELEKTRA-BC","15X-ELEKTRA----D"]
[null,"ELMIB Első Magyar Infrastruktúra Befektetési ZRt.","ELMIB-BC","15X-ELMIB------O"]
[null,"Elmű-Émász Energiakereskedő Kft.","MASZ_BC","15X-MASZ-------6"]
[null,"ELMŰ-ÉMÁSZ Energiaszolgáltató Zrt.","HU-EL-EM-ENSZ","15X-EL-EM-ENSZ-R"]
[null,"Első Hazai Energia-portfólió Nyivánosan Működő Részvénytársaság.","EHEP-RT-BC","15X-EHEPRT-----6"]
[null,"EMFESZ Első Magyar Földgáz- és Energiakereskedelmi és Szolgáltató Kft.","EMFESZ-BC","15X-EMFESZ-----R"]
[null,"Energetikai Központ Zrt.","ENERKO-HUN-BC","15X-ENERKO-----D"]
[null,"ENERGO-PARTNER Kereskedelmi és Szolgáltató Kft.","ENERGO-PART-BC","15X-ENERGO-----8"]
[null,"Energy Capital Energiakereskedő Kft.","E-CAP-H-BC","15X-E-CAP-H----X"]
[null,"ENKER-TEAM Kereskedelmi és Szolgáltató Kft.","ENKER-BC","15X-ENKER-TEAM-6"]
[null,"E-OS Zrt.","E-OS-HUN-BC","15X-E-OS-HUN---5"]
[null,"ETC Hungary Energia Kereskedő Kft.","ETC-HUN-BC","15X-ETC-HUN----K"]
[null,"EZPADA Hungary Energia-kereskedelmi Kft.","EZPADA-H-BC","15X-EZPADA-H---P"]
[null,"GDF SUEZ Energia Holding Hungary Zrt.","GDF-HH-BC","15X-GDF-HH-----7"]
[null,"GDF SUEZ Energia Magyarország Zrt.","GDF-SUEZ-HUN-BC","15X-GDF-SUEZ---2"]
[null,"GEN-I Budapest Kft.","GEN-I-HUN-BC","15X-GEN-I-HUN--8"]
[null,"Greenergy-Trade Kft.","GREEN-TR-BC","15X-GREEN-TR---4"]
[null,"HSE Hungary Kft.","HSE-HUN-BC","15X-HSE-HUN----C"]
[null,"IFC Energy Kft.","OPTEN-TR-BC","15X-OPTEN-TR---2"]
[null,"JAS Budapest Zrt.","JAS_BC","15X-JAS--------X"]
[null,"JMT ENERGY Kft.","JMT-HUN-BC","15X-JMT--------2"]
[null,"Lumius Kereskedelmi Kft.","LUMIUS-BC","15X-LUMIUS-H---P"]
[null,"Mátrai Erőmű Rt.","MERT-BC","15XMATRAEROMURTR"]
[null,"MAVIR Magyar Villamosenergia-ipari Átviteli Rendszerirányító ZRt.","MAVIR","10X1001A1001A329"]
[null,"MET Power Hungary Kft.","MET-HUN-BC","15X-MET-HUN----U"]
[null,"MOL Magyar Olaj- és Gázipari Nyrt.","MOLTR-BC","15X-MOLTRADING-F"]
[null,"MVM Partner Zrt.","MVM_BC","15X-MVM--------B"]
[null,"NKM Áramszolgáltató Zrt.","D_ENERGIA_BC","15X-DENERGIA---J"]
[null,"Nordest Energy Kft.","NORDEST-HUN-BC","15X-NORDEST-HUNZ"]
[null,"ÓAM Ózdi Acélművek Kft.","OZD_KOHO_BC","15X-OZD-KOHO---C"]
[null,"PB Power Trade Hungary Kft.","PBPT-HUN-BC","15X-PBPT-HUN---I"]
[null,"PCC Energie Kft.","PCC_BC","15X-PCC--------P"]
[null,"RE Magyarország Kft.","RE-HUN-BC","15X-RE-HUN-----C"]
[null,"Rudnap-Hungary Kft.","RUDNAP-H-BC","15X-RUDNAP-H---V"]
[null,"Sempra Energy Europe Kft.","SEMPRA_HUN_BC","15X-SEMPRA-HUN-8"]
[null,"Statkraft Markets Hungaria Kft.","STATKRAFT-BC","15X-STATKRAFTH-F"]
[null,"System Consulting Rt.","SYSTEM_BC","15X-SYSTEM-----Z"]
[null,"TINMAR Kft.","TINMAR-H-BC","15X-TINMAR-H---Y"]
[null,"UKRENERGY TRADE ZRT","ECAP-TR-BC","15X-ECAP-TR-H--B"]
[null,"VERBUND-APT Hungária Kft.","V-APT-HUN-BC","15X-V-APT-HUN--N","Sorrendhez segéd"]
[null,"Vértesi Erőmű ZRt.","VERTES-BC","15X-VERTES-----2","kell"]
[null,"VPP Energy Zrt.","VPP-BC","15X-VPP--------D"]
[null,"VPP Energy Zrt. szabályozott fogyasztók","VPP-SZF-BC","-VPP---------FSA","kell"]
[null,null,null,null,"kell"]
["Kereskedő",null,{"$f":"COUNTA(B113:B197)","v":83}]
[null,"Megnevezés","Rövid név","EIC-kód"]
[null,"AES Borsodi Energetikai Kft.","AES-B-ENERGETIKA","15X-AES-BEN-KFT4"]
[null,"AES Borsodi Energetikai Kft., Huntrade mérlegkör","AES-HUNTRADE-BC","15X-AES-HUNTRAD9"]
[null,"Alpiq Energy SE Magyarországi Fióktelepe","ATEL-PANNON_BC","15X-ATEL-PANNONR"]
[null,"ALTEO Energiakereskedő Zrt.","ALTEO-EKER","15X-ALTEOEKER--Y","kell"]
[null,"ALTEO Nyrt.","ALTEO-HUN-BC","15X-ALTEO-HUN--J"]
[null,"Áramcentrum Kft.","HU-ARAMCENT","15X-ARAMCENT---G","kell"]
[null,"ÁRPÁD Energia Kereskedelmi Kft.","ARPAD-ENERGIA-BC","15X-ARPADEN----5"]
[null,"BanKonzult Pénzügyi és Gazdasági Tanácsadó Kft.","BANKONZ-BC","15X-BANKONZ----Z"]
[null,"BC-Energiakereskedő Kft.","BC-HUN-BC","15X-BC-ENERGIA-A"]
[null,"Better Life Support Kft.","HU-BETTERLIFE","15X-BETTERLIFE-4"]
[null,"Budapesti Energiakereskedő Kft.","E-BUDAI-BC","15X-E-BUDAI----O"]
[null,"CEZ Magyarország Kft.","CEZ-HUN-BC","15X-CEZ-HUN----G","kell"]
[null,"Coal Energy Budapest Kft.","CE-BUD-BC","15X-CEBUD------0"]
[null,"CYEB Energiakereskedő Kft.","HU-CYEB","15X-CYEB-------X"]
[null,"DBK-Brikettgyár Kft.","DBK-HUN-BC","15X-DBK-HUN----2","kell"]
[null,"Debreceni Kombinált Ciklusú Erőmű Kft.","DKCE_BC","15X-DKCE-------K","kell"]
[null,"DÉMÁSZ Zrt. - K","DEMASZ-TR","15X-DEMASZ-KER-T"]
[null,"Dunamenti Erőmű Rt.","DUMERT-BC","15X-DUMERT-----5","kell"]
[null,"E and t Hungária Energia-keresekedelmi Kft.","ET-HUN-BC","15X-ET-HUN-----3"]
[null,"E.ON Energiakereskedelmi Kft. - ESZ","EON_HUN_BC","15X-EON-EKER---A"]
[null,"E.ON Energiakereskedelmi Kft. - K","EON_HUN_BC","15X-EON-EKER---A"]
[null,"E2 Hungary Zrt.","HU-E2-HUN ","15X-E2-HUN-----4","kell"]
[null,"EFT Budapest Zrt.","EFT_BUD_BC","15X-EFT-BUD----1","kell"]
[null,"ELECTRABEL Magyarország Kft.","ELECTRABEL-BC","15X-ELECTRABEL-A","kell"]
[null,"Elektra Energia Kereskedelmi Kft.","ELEKTRA-BC","15X-ELEKTRA----D"]
[null,"ELGAS Energy Kft.","ELGAS-HUN-BC","15X-ELGAS-HUN--V"]
[null,"ELMIB Első Magyar Infrastruktúra Befektetési ZRt.","ELMIB-BC","15X-ELMIB------O","kell"]
[null,"ELMŰ Nyrt.","ELMU-TR","15X-ELMU-KER---5"]
[null,"Elmű-Émász Energiakereskedő Kft.","MASZ_BC","15X-MASZ-------6"]
[null,"ELMŰ-ÉMÁSZ Energiaszolgáltató Zrt.","HU-EL-EM-ENSZ","15X-EL-EM-ENSZ-R"]
[null,"Első Hazai Energia-portfólió Nyivánosan Működő Részvénytársaság.","EHEP-RT-BC","15X-EHEPRT-----6"]
[null,"ÉMÁSZ Nyrt.","EMASZ-TR","15X-EMASZ-KER--J"]
[null,"EMFESZ Első Magyar Földgáz- és Energiakereskedelmi és Szolgáltató Kft.","EMFESZ-BC","15X-EMFESZ-----R"]
[null,"EMOGÁ Kft.","EMOGA-GKER","15X-EMOGA-GKER-1","kell"]
[null,"ENER-CON TRADE ZRT.","HU-ENERCON","15X-ENER-CON-T-G"]
[null,"Energetikai Központ Zrt.","HU-ENERKO","15X-ENERKO-----D"]
[null,"Energia Info Kft.","15X-ENINFO-----C","15X-ENINFO-----C"]
[null,"ENERGO-PARTNER Kereskedelmi és Szolgáltató Kft.","ENERGO-PART-BC","15X-ENERGO-----8"]
[null,"Energy Capital Energiakereskedő Kft.","E-CAP-H-BC","15X-E-CAP-H----X"]
[null,"ENKER-TEAM Kereskedelmi és Szolgáltató Kft.","ENKER-BC","15X-ENKER-TEAM-6"]
[null,"E-OS Zrt.","E-OS-HUN-BC","15X-E-OS-HUN---5"]
[null,"ETC Hungary Energia Kereskedő Kft.","ETC-HUN-BC","15X-ETC-HUN----K"]
[null,"Europe Energy Kft.","HU-EUROPE","15X-EUROPE-HUN-L"]
[null,"EZPADA Hungary Energia-kereskedelmi Kft.","EZPADA-H-BC","15X-EZPADA-H---P"]
[null,"GDF SUEZ Energia Holding Hungary Zrt.","GDF-HH-BC","15X-GDF-HH-----7"]
[null,"GDF SUEZ Energia Magyarország Zrt.","GDF-SUEZ-HUN-BC","15X-GDF-SUEZ---2"]
[null,"GEN-I Budapest Kft.","GEN-I-HUN-BC","15X-GEN-I-HUN--8","kell"]
[null,"Greenergy-Trade Kft.","GREEN-TR-BC","15X-GREEN-TR---4"]
[null,"HSE Hungary Kft.","HSE-HUN-BC","15X-HSE-HUN----C"]
[null,"HUNGARO ENERGY Kft.","HU-HUNGARO","15X-HUNGARO-EN-J"]
[null,"IFC Energy Kft.","OPTEN-TR-BC","15X-OPTEN-TR---2"]
[null,"JAS Budapest Zrt.","JAS_BC","15X-JAS--------X"]
[null,"JMT ENERGY Kft.","JMT-HUN-BC","15X-JMT--------2"]
[null,"Kapacitás Energia Kft.","HU-KAPACITAS","15X-KAPACITAS--U"]
[null,"Laming Thomson Kft.","LAMING-T","15X-LAMING-T---T"]
[null,"Lumius Kereskedelmi Kft.","LUMIUS-BC","15X-LUMIUS-H---P"]
[null,"Magyar Telekom Nyrt.","HU-TELEKOM","15X-TELEKOM----Q"]
[null,"Mátrai Erőmű Rt.","MERT-BC","15XMATRAEROMURTR","kell"]
[null,"MAVIR Magyar Villamosenergia-ipari Átviteli Rendszerirányító ZRt.","MAVIR","10X1001A1001A329","kell"]
[null,"MET Magyarország Zrt.","HU-MET","15X-MET--------H","kell"]
[null,"MET Power Hungary Kft.","MET-HUN-BC","15X-MET-HUN----U"]
[null,"MOL Magyar Olaj- és Gázipari Nyrt.","MOLTR-BC","15X-MOLTRADING-F"]
[null,"MVM Partner Zrt.","MVM_BC","15X-MVM--------B"]
[null,"NKM Áramszolgáltató Zrt. (volt DÉMÁSZ) országos ESZ","DEMASZ-UP","15X-DEMASZ-ESZ-G"]
[null,"NKM Áramszolgáltató Zrt. (volt DÉMÁSZ) versenypiac","D_ENERGIA_BC","15X-DENERGIA---J"]
[null,"Nordest Energy Kft.","NORDEST-HUN-BC","15X-NORDEST-HUNZ"]
[null,"ÓAM Ózdi Acélművek Kft.","OZD_KOHO_BC","15X-OZD-KOHO---C"]
[null,"Panarella Kft.","HU-PANARELLA","15X-PANARELLA--0"]
[null,"PB Power Trade Hungary Kft.","PBPT-HUN-BC","15X-PBPT-HUN---I"]
[null,"PCC Energie Kft.","PCC_BC","15X-PCC--------P"]
[null,"RE Magyarország Kft.","RE-HUN-BC","15X-RE-HUN-----C"]
[null,"Rudnap-Hungary Kft.","RUDNAP-H-BC","15X-RUDNAP-H---V"]
[null,"Sempra Energy Europe Kft.","SEMPRA_HUN_BC","15X-SEMPRA-HUN-8"]
[null,"SMHV Energetika Kft.","HU-SMHV","15X-SMHV-------M"]
[null,"Statkraft Markets Hungaria Kft.","STATKRAFT-BC","15X-STATKRAFTH-F"]
[null,"System Consulting Rt.","SYSTEM_BC","15X-SYSTEM-----Z"]
[null,"TINMAR Kft.","TINMAR-H-BC","15X-TINMAR-H---Y"]
[null,"UKRENERGY TRADE ZRT","ECAP-TR-BC","15X-ECAP-TR-H--B"]
[null,"VERBUND-APT Hungária Kft.","V-APT-HUN-BC","15X-V-APT-HUN--N"]
[null,"Vértesi Erőmű ZRt.","VERTES-BC","15X-VERTES-----2"]
[null,"VPP Energy Zrt.","VPP-BC","15X-VPP--------D"]
[null,"VPP Energy Zrt. szabályozott fogyasztók","VPP-SZF-BC","-VPP---------FSA"]
[null,"West End Energiakereskedelmi Kft.","HU-WEE","15X-WEE--------A"]
[]
["Mértékegység",null,{"$f":"COUNTA(B199:B202)","v":3}]
[null,"Megnevezés"]
[null,"A"]
[null,"kVA"]
[null,"kW"]
[]
["RHDfizető",null,{"$f":"COUNTA(B205:B207)","v":2}]
[null,"Megnevezés"]
[null,"Kereskedő"]
[null,"Felhasználó"]
[]
["RkLeolv",null,{"$f":"COUNTA(B210:B212)","v":2}]
[null,"Megnevezés"]
[null,"Igen"]
[null,"Nem"]
[]
["Státusz",null,{"$f":"COUNTA(B215:B233)","v":8}]
[null,"Megnevezés"]
[null,"Bejelentés","ellátás kezdete üzenet"]
[null,"Bejelentés KV","kereskedőváltás bejelentés"]
[null,"Kijelentés","ellátás vége üzenet"]
[null,"Kijelentés KV","kereskedőváltás kijelentés"]
[null,"Rendkívüli bejelentés ELLÁTATLAN","ellátatlan"]
[null,"Rendkívüli bejelentés HIBAJAV","hibajavításra"]
[null,"Rendkívüli kijelentés HIBAJAV","hibajavításra"]
[null,"Rendkívüli kijelentés KI RENDK.SZERZ.FELM","rendkívüli szerződésfelmondás"]
[]
[]
[]
[]
[]
[]
[]
[]
[]
[]
["StátuszDSO",null,{"$f":"COUNTA(B235:B249)","v":5}]
[null,"Megnevezés"]
[null,"Bejelentés - Elfogadva"]
[null,"Bejelentés - Elfogadva: módosítással"]
[null,"Bejelentés - Visszautasítva: adathiány"]
[null,"Kijelentés - Elfogadva"]
[null,"Kijelentés - Visszautasítva: adathiány"]

{"sheet":"Munka","index":3,"n_rows":0,"n_cols":0,"rows_kept":0,"cut":false,"hidden":false,"merged":[]}